fUSD/lending_fUSD_20260702
["ID","MTS","AMOUNT","RATE_DAILY","PERIOD"]
[426874057,1782970261000,-180.477987,0.00032877,7]
[426874051,1782970261000,-151.0,0.00032877,7]
[426874055,1782970261000,-151.0,0.00032877,7]
[426874058,1782970261000,-240.860076,0.00032877,7]
[426874038,1782970261000,-682.813164,0.00032877,7]
[426874053,1782970261000,-151.0,0.00032877,7]
[426874054,1782970261000,-180.477987,0.00032877,7]
[426874060,1782970261000,-670.325388,0.00032877,7]
[426874059,1782970261000,-4237.378366,0.00032877,7]
[426874069,1782970261000,-808.005991,0.00032877,7]
[426874062,1782970261000,-240.860076,0.00032877,7]
[426874070,1782970261000,-169.901633,0.00032877,7]
[426874061,1782970261000,-732.102824,0.00032877,7]
[426874071,1782970261000,-151.0,0.00032877,7]
[426874063,1782970261000,-151.0,0.00032877,7]
[426874067,1782970261000,-169.901633,0.00032877,7]
[426874064,1782970261000,-4237.378366,0.00032877,7]
[426874068,1782970261000,-151.0,0.00032877,7]
[426874006,1782970261000,-682.813164,0.00032877,7]
[426874056,1782970261000,-670.325388,0.00032877,7]
[426874037,1782970261000,-808.005991,0.00032877,7]
[426874065,1782970261000,-808.005991,0.00032877,7]
[426874042,1782970261000,-180.477987,0.00032877,7]
[426874035,1782970261000,-670.325388,0.00032877,7]
[426874010,1782970261000,-2971.147594,0.00032877,7]
[426874009,1782970261000,-151.0,0.00032877,7]
[426874012,1782970261000,-180.477987,0.00032877,7]
[426874016,1782970261000,-151.0,0.00032877,7]
[426874013,1782970261000,-682.813164,0.00032877,7]
[426874015,1782970261000,-682.813164,0.00032877,7]
[426874014,1782970261000,-180.477987,0.00032877,7]
[426874019,1782970261000,-2971.147594,0.00032877,7]
[426874021,1782970261000,-151.0,0.00032877,7]
[426874020,1782970261000,-151.0,0.00032877,7]
[426874030,1782970261000,-682.813164,0.00032877,7]
[426874031,1782970261000,-670.325388,0.00032877,7]
[426874025,1782970261000,-2971.147594,0.00032877,7]
[426874011,1782970261000,-151.0,0.00032877,7]
[426874022,1782970261000,-670.325388,0.00032877,7]
[426874026,1782970261000,-281.797007,0.00032877,7]
[426874040,1782970261000,-670.325388,0.00032877,7]
[426874034,1782970261000,-808.005991,0.00032877,7]
[426874044,1782970261000,-2971.147594,0.00032877,7]
[426874043,1782970261000,-732.102824,0.00032877,7]
[426874032,1782970261000,-169.901633,0.00032877,7]
[426874036,1782970261000,-2971.147594,0.00032877,7]
[426874029,1782970261000,-180.477987,0.00032877,7]
[426874028,1782970261000,-682.813164,0.00032877,7]
[426874033,1782970261000,-2971.147594,0.00032877,7]
[426874024,1782970261000,-169.901633,0.00032877,7]
[426874045,1782970261000,-670.325388,0.00032877,7]
[426874027,1782970261000,-180.477987,0.00032877,7]
[426874023,1782970261000,-290.507751,0.00032877,7]
[426874111,1782970262000,-500.0,0.00032899,2]
[426874103,1782970262000,-500.0,0.00032899,2]
[426874102,1782970262000,-500.0,0.00032899,2]
[426874104,1782970262000,-500.0,0.00032899,2]
[426874105,1782970262000,-500.0,0.00032899,2]
[426874116,1782970262000,-500.0,0.00032899,2]
[426874117,1782970262000,-500.0,0.00032899,2]
[426874107,1782970262000,-500.0,0.00032899,2]
[426874109,1782970262000,-500.0,0.00032899,2]
[426874108,1782970262000,-500.0,0.00032899,2]
[426874101,1782970262000,-500.0,0.00032899,2]
[426874106,1782970262000,-500.0,0.00032899,2]
[426874121,1782970262000,-500.0,0.00032899,120]
[426874114,1782970262000,-500.0,0.00032899,2]
[426874115,1782970262000,-500.0,0.00032899,2]
[426874110,1782970262000,-500.0,0.00032899,2]
[426874112,1782970262000,-500.0,0.00032899,2]
[426874118,1782970262000,-500.0,0.00032899,2]
[426874120,1782970262000,-500.0,0.00032899,120]
[426874123,1782970262000,-500.0,0.00032899,120]
[426874129,1782970262000,-676.91985521,0.000329,2]
[426874119,1782970262000,-561.08755963,0.00032899,2]
[426874124,1782970262000,-500.0,0.00032899,120]
[426874095,1782970262000,-500.0,0.00032899,2]
[426874122,1782970262000,-500.0,0.00032899,14]
[426874113,1782970262000,-500.0,0.00032899,2]
[426874100,1782970262000,-500.0,0.00032899,2]
[426874083,1782970262000,-240.860076,0.00032877,7]
[426874097,1782970262000,-500.0,0.00032899,2]
[426874128,1782970262000,-503.97715691,0.00032899,60]
[426874072,1782970262000,-151.0,0.00032877,7]
[426874075,1782970262000,-732.102824,0.00032877,7]
[426874074,1782970262000,-4237.378366,0.00032877,7]
[426874081,1782970262000,-169.901633,0.00032877,7]
[426874076,1782970262000,-240.860076,0.00032877,7]
[426874079,1782970262000,-169.901633,0.00032877,7]
[426874077,1782970262000,-4237.378366,0.00032877,7]
[426874073,1782970262000,-240.860076,0.00032877,7]
[426874078,1782970262000,-732.102824,0.00032877,7]
[426874082,1782970262000,-808.005991,0.00032877,7]
[426874080,1782970262000,-808.005991,0.00032877,7]
[426874084,1782970262000,-732.102824,0.00032877,7]
[426874086,1782970262000,-252.93,0.00032882,7]
[426874085,1782970262000,-4237.378366,0.00032877,7]
[426874088,1782970262000,-500.0,0.00032899,2]
[426874087,1782970262000,-152.0,0.00032893,5]
[426874090,1782970262000,-500.0,0.00032899,2]
[426874089,1782970262000,-500.0,0.00032899,120]
[426874091,1782970262000,-500.0,0.00032899,2]
[426874092,1782970262000,-500.0,0.00032899,2]
[426874093,1782970262000,-500.0,0.00032899,2]
[426874094,1782970262000,-500.0,0.00032899,2]
[426874098,1782970262000,-500.0,0.00032899,2]
[426874096,1782970262000,-500.0,0.00032899,2]
[426874099,1782970262000,-500.0,0.00032899,2]
[426874127,1782970262000,-2000.0,0.00032899,30]
[426874126,1782970262000,-2000.0,0.00032899,5]
[426874125,1782970262000,-500.34,0.00032899,7]
[426874161,1782970262000,-857.34192344,0.000329,30]
[426874160,1782970262000,-857.34192344,0.000329,30]
[426874163,1782970262000,-857.34192344,0.000329,30]
[426874173,1782970262000,-1877.07081917,0.000329,30]
[426874164,1782970262000,-857.34192344,0.000329,30]
[426874165,1782970262000,-857.34192344,0.000329,30]
[426874162,1782970262000,-857.34192344,0.000329,30]
[426874168,1782970262000,-857.34192344,0.000329,30]
[426874167,1782970262000,-857.34192344,0.000329,30]
[426874166,1782970262000,-857.34192344,0.000329,30]
[426874170,1782970262000,-1877.07081917,0.000329,30]
[426874172,1782970262000,-1877.07081917,0.000329,30]
[426874171,1782970262000,-1877.07081917,0.000329,30]
[426874174,1782970262000,-1877.07081917,0.000329,30]
[426874176,1782970262000,-1877.07081917,0.000329,30]
[426874184,1782970262000,-1877.07081917,0.000329,30]
[426874178,1782970262000,-1877.07081917,0.000329,30]
[426874175,1782970262000,-1877.07081917,0.000329,30]
[426874177,1782970262000,-1877.07081917,0.000329,30]
[426874179,1782970262000,-1877.07081917,0.000329,30]
[426874180,1782970262000,-1877.07081917,0.000329,30]
[426874185,1782970262000,-1877.07081917,0.000329,30]
[426874181,1782970262000,-1877.07081917,0.000329,30]
[426874182,1782970262000,-1877.07081917,0.000329,30]
[426874183,1782970262000,-1877.07081917,0.000329,30]
[426874159,1782970262000,-857.34192344,0.000329,30]
[426874156,1782970262000,-857.34192344,0.000329,30]
[426874169,1782970262000,-857.34,0.000329,30]
[426874157,1782970262000,-857.34192344,0.000329,30]
[426874143,1782970262000,-2673.00220165,0.000329,30]
[426874158,1782970262000,-857.34192344,0.000329,30]
[426874142,1782970262000,-2673.00220165,0.000329,30]
[426874131,1782970262000,-2673.00220165,0.000329,30]
[426874130,1782970262000,-2673.00220165,0.000329,30]
[426874134,1782970262000,-2673.00220165,0.000329,30]
[426874137,1782970262000,-2673.00220165,0.000329,30]
[426874139,1782970262000,-2673.00220165,0.000329,30]
[426874140,1782970262000,-2673.00220165,0.000329,30]
[426874133,1782970262000,-2673.00220165,0.000329,30]
[426874135,1782970262000,-2673.00220165,0.000329,30]
[426874138,1782970262000,-2673.00220165,0.000329,30]
[426874141,1782970262000,-2673.00220165,0.000329,30]
[426874136,1782970262000,-2673.00220165,0.000329,30]
[426874132,1782970262000,-2673.00220165,0.000329,30]
[426874152,1782970262000,-857.34192344,0.000329,30]
[426874154,1782970262000,-857.34192344,0.000329,30]
[426874145,1782970262000,-2673.00220165,0.000329,30]
[426874150,1782970262000,-857.34192344,0.000329,30]
[426874153,1782970262000,-857.34192344,0.000329,30]
[426874146,1782970262000,-2673.00220165,0.000329,30]
[426874148,1782970262000,-2673.00220165,0.000329,30]
[426874147,1782970262000,-2673.00220165,0.000329,30]
[426874155,1782970262000,-857.34192344,0.000329,30]
[426874151,1782970262000,-857.34192344,0.000329,30]
[426874144,1782970262000,-2673.00220165,0.000329,30]
[426874149,1782970262000,-2673.0,0.000329,30]
[426874221,1782970263000,-151.0,0.00032994,7]
[426874238,1782970263000,-189.840966,0.00032994,7]
[426874231,1782970263000,-189.840966,0.00032994,7]
[426874227,1782970263000,-151.561441,0.00032994,7]
[426874222,1782970263000,-303.166942,0.00032994,7]
[426874217,1782970263000,-151.0,0.00032994,7]
[426874218,1782970263000,-151.0,0.00032994,7]
[426874220,1782970263000,-151.0,0.00032994,7]
[426874223,1782970263000,-151.0,0.00032994,7]
[426874225,1782970263000,-303.166942,0.00032994,7]
[426874230,1782970263000,-312.22493,0.00032994,7]
[426874219,1782970263000,-303.166942,0.00032994,7]
[426874229,1782970263000,-151.0,0.00032994,7]
[426874247,1782970263000,-163.662,0.00032994,7]
[426874228,1782970263000,-312.22493,0.00032994,7]
[426874236,1782970263000,-189.840966,0.00032994,7]
[426874235,1782970263000,-312.22493,0.00032994,7]
[426874233,1782970263000,-189.840966,0.00032994,7]
[426874237,1782970263000,-360.667947,0.00032994,7]
[426874239,1782970263000,-360.667947,0.00032994,7]
[426874234,1782970263000,-360.667947,0.00032994,7]
[426874241,1782970263000,-151.0,0.00032994,7]
[426874251,1782970263000,-329.58,0.00032994,7]
[426874240,1782970263000,-360.667947,0.00032994,7]
[426874242,1782970263000,-151.0,0.00032994,7]
[426874248,1782970263000,-163.662,0.00032994,7]
[426874250,1782970263000,-163.662,0.00032994,7]
[426874216,1782970263000,-303.166942,0.00032994,7]
[426874232,1782970263000,-312.22493,0.00032994,7]
[426874226,1782970263000,-151.0,0.00032994,7]
[426874190,1782970263000,-1973.29945726,0.000329,2]
[426874215,1782970263000,-151.0,0.00032994,7]
[426874187,1782970263000,-1877.07081917,0.000329,30]
[426874197,1782970263000,-153.0,0.00032938,7]
[426874198,1782970263000,-153.0,0.00032938,7]
[426874246,1782970263000,-151.0,0.00032994,7]
[426874188,1782970263000,-1877.07081917,0.000329,30]
[426874189,1782970263000,-1877.07,0.000329,30]
[426874186,1782970263000,-1877.07081917,0.000329,30]
[426874194,1782970263000,-350.0,0.00032911,2]
[426874196,1782970263000,-153.0,0.00032938,7]
[426874192,1782970263000,-520.88626819,0.000329,2]
[426874191,1782970263000,-3593.652962,0.000329,2]
[426874195,1782970263000,-250.9,0.00032919,7]
[426874193,1782970263000,-150.15,0.00032909,14]
[426874213,1782970263000,-550.28588655,0.00032991,2]
[426874202,1782970263000,-327.79,0.00032957,7]
[426874204,1782970263000,-300.0,0.0003297,2]
[426874201,1782970263000,-356.58,0.00032953,7]
[426874199,1782970263000,-164.71133873,0.00032938,7]
[426874208,1782970263000,-520.0,0.00032988,2]
[426874211,1782970263000,-360.23,0.00032989,7]
[426874212,1782970263000,-251.6748145,0.0003299,2]
[426874207,1782970263000,-400.0,0.0003297,2]
[426874205,1782970263000,-500.0,0.0003297,2]
[426874210,1782970263000,-2000.0,0.00032989,2]
[426874200,1782970263000,-166.0,0.00032938,7]
[426874209,1782970263000,-2000.0,0.00032988,10]
[426874214,1782970263000,-2035.4669874,0.00032994,2]
[426874224,1782970263000,-151.0,0.00032994,7]
[426874203,1782970263000,-503.07519474,0.00032957,2]
[426874249,1782970263000,-163.662,0.00032994,7]
[426874206,1782970263000,-400.0,0.0003297,2]
[426874244,1782970263000,-151.0,0.00032994,7]
[426874276,1782970263000,-2384.642488,0.00032999,7]
[426874286,1782970263000,-151.0,0.00032999,7]
[426874282,1782970263000,-151.0,0.00032999,7]
[426874283,1782970263000,-151.0,0.00032999,7]
[426874289,1782970263000,-151.0,0.00032999,7]
[426874299,1782970263000,-500.0,0.00032999,120]
[426874290,1782970263000,-151.0,0.00032999,7]
[426874288,1782970263000,-151.0,0.00032999,7]
[426874291,1782970263000,-216.0259,0.00032999,7]
[426874292,1782970263000,-378.91536,0.00032999,7]
[426874294,1782970263000,-378.91536,0.00032999,7]
[426874293,1782970263000,-378.91536,0.00032999,7]
[426874296,1782970263000,-151.0,0.00032999,7]
[426874279,1782970263000,-151.0,0.00032999,7]
[426874297,1782970263000,-151.0,0.00032999,7]
[426874298,1782970263000,-151.0,0.00032999,7]
[426874300,1782970263000,-500.0,0.00032999,120]
[426874302,1782970263000,-500.0,0.00032999,120]
[426874306,1782970263000,-500.0,0.00032999,120]
[426874310,1782970263000,-500.0,0.00032999,120]
[426874308,1782970263000,-500.0,0.00032999,120]
[426874301,1782970263000,-500.0,0.00032999,120]
[426874303,1782970263000,-500.0,0.00032999,120]
[426874305,1782970263000,-500.0,0.00032999,120]
[426874307,1782970263000,-500.0,0.00032999,120]
[426874311,1782970263000,-500.0,0.00032999,120]
[426874309,1782970263000,-500.0,0.00032999,120]
[426874243,1782970263000,-151.0,0.00032994,7]
[426874295,1782970263000,-378.91536,0.00032999,7]
[426874281,1782970263000,-2384.642488,0.00032999,7]
[426874304,1782970263000,-500.0,0.00032999,120]
[426874285,1782970263000,-2384.642488,0.00032999,7]
[426874284,1782970263000,-268.527493,0.00032999,7]
[426874245,1782970263000,-151.0,0.00032994,7]
[426874252,1782970263000,-2000.0,0.00032996,14]
[426874255,1782970263000,-151.0,0.00032999,7]
[426874256,1782970263000,-151.0,0.00032999,7]
[426874259,1782970263000,-500.0,0.00032999,2]
[426874262,1782970263000,-521.36271652,0.00032999,2]
[426874260,1782970263000,-500.0,0.00032999,2]
[426874258,1782970263000,-154.926869,0.00032999,7]
[426874257,1782970263000,-151.0,0.00032999,7]
[426874253,1782970263000,-151.0,0.00032997,14]
[426874261,1782970263000,-500.0,0.00032999,2]
[426874264,1782970263000,-315.763905,0.00032999,7]
[426874263,1782970263000,-315.763905,0.00032999,7]
[426874254,1782970263000,-151.0,0.00032999,7]
[426874273,1782970263000,-2384.642488,0.00032999,7]
[426874274,1782970263000,-268.527493,0.00032999,7]
[426874277,1782970263000,-151.0,0.00032999,7]
[426874278,1782970263000,-268.527493,0.00032999,7]
[426874287,1782970263000,-199.555065,0.00032999,7]
[426874275,1782970263000,-151.0,0.00032999,7]
[426874269,1782970263000,-166.424764,0.00032999,7]
[426874280,1782970263000,-151.0,0.00032999,7]
[426874265,1782970263000,-315.763905,0.00032999,7]
[426874266,1782970263000,-315.763905,0.00032999,7]
[426874270,1782970263000,-151.0,0.00032999,7]
[426874267,1782970263000,-151.0,0.00032999,7]
[426874268,1782970263000,-151.0,0.00032999,7]
[426874271,1782970263000,-268.527493,0.00032999,7]
[426874272,1782970263000,-151.0,0.00032999,7]
[426874338,1782970264000,-612.93854249,0.00032999,30]
[426874347,1782970264000,-565.460775,0.00032999,7]
[426874343,1782970264000,-565.460775,0.00032999,7]
[426874345,1782970264000,-416.034747,0.00032999,7]
[426874351,1782970264000,-416.034747,0.00032999,7]
[426874344,1782970264000,-1633.260185,0.00032999,7]
[426874346,1782970264000,-151.0,0.00032999,7]
[426874341,1782970264000,-716.769789,0.00032999,7]
[426874342,1782970264000,-382.684019,0.00032999,7]
[426874350,1782970264000,-1633.260185,0.00032999,7]
[426874348,1782970264000,-382.684019,0.00032999,7]
[426874357,1782970264000,-225.43638,0.00032999,7]
[426874352,1782970264000,-565.460775,0.00032999,7]
[426874354,1782970264000,-620.840217,0.00032999,7]
[426874353,1782970264000,-499.777447,0.00032999,7]
[426874359,1782970264000,-620.840217,0.00032999,7]
[426874355,1782970264000,-565.460775,0.00032999,7]
[426874361,1782970264000,-151.0,0.00032999,7]
[426874356,1782970264000,-499.777447,0.00032999,7]
[426874360,1782970264000,-499.777447,0.00032999,7]
[426874337,1782970264000,-188.30996,0.00032999,7]
[426874362,1782970264000,-319.343305,0.00032999,7]
[426874349,1782970264000,-499.777447,0.00032999,7]
[426874335,1782970264000,-151.0,0.00032999,7]
[426874320,1782970264000,-1830.046775,0.00032999,5]
[426874339,1782970264000,-1633.260185,0.00032999,7]
[426874358,1782970264000,-319.343305,0.00032999,7]
[426874312,1782970264000,-500.0,0.00032999,120]
[426874313,1782970264000,-635.17267934,0.00032999,120]
[426874315,1782970264000,-151.0,0.00032999,7]
[426874327,1782970264000,-151.0,0.00032999,7]
[426874325,1782970264000,-382.684019,0.00032999,7]
[426874317,1782970264000,-236.975862,0.00032999,7]
[426874316,1782970264000,-236.975862,0.00032999,7]
[426874314,1782970264000,-236.975862,0.00032999,7]
[426874319,1782970264000,-151.0,0.00032999,7]
[426874323,1782970264000,-151.0,0.00032999,7]
[426874321,1782970264000,-716.769789,0.00032999,7]
[426874318,1782970264000,-236.975862,0.00032999,7]
[426874324,1782970264000,-1830.046775,0.00032999,5]
[426874322,1782970264000,-151.0,0.00032999,7]
[426874328,1782970264000,-1830.046775,0.00032999,5]
[426874330,1782970264000,-1633.260185,0.00032999,7]
[426874331,1782970264000,-416.034747,0.00032999,7]
[426874332,1782970264000,-716.769789,0.00032999,7]
[426874334,1782970264000,-1000.0,0.00032999,30]
[426874336,1782970264000,-1830.046775,0.00032999,5]
[426874329,1782970264000,-151.0,0.00032999,7]
[426874340,1782970264000,-416.034747,0.00032999,7]
[426874333,1782970264000,-382.684019,0.00032999,7]
[426874373,1782970264000,-365.35059,0.00032999,7]
[426874326,1782970264000,-716.769789,0.00032999,7]
[426874363,1782970264000,-620.840217,0.00032999,7]
[426874391,1782970264000,-396.666645,0.00032999,7]
[426874389,1782970264000,-396.666645,0.00032999,7]
[426874390,1782970264000,-438.054864,0.00032999,7]
[426874396,1782970264000,-500.0,0.00032999,120]
[426874402,1782970264000,-500.34,0.00032999,7]
[426874404,1782970264000,-500.34,0.00032999,7]
[426874401,1782970264000,-500.78392869,0.00032999,120]
[426874399,1782970264000,-500.0,0.00032999,120]
[426874406,1782970264000,-500.34,0.00032999,7]
[426874397,1782970264000,-266.18,0.00032999,120]
[426874398,1782970264000,-500.0,0.00032999,14]
[426874403,1782970264000,-500.34,0.00032999,7]
[426874405,1782970264000,-500.34,0.00032999,7]
[426874400,1782970264000,-500.0,0.00032999,120]
[426874412,1782970264000,-500.34,0.00032999,7]
[426874407,1782970264000,-500.34,0.00032999,7]
[426874413,1782970264000,-500.34,0.00032999,7]
[426874408,1782970264000,-500.34,0.00032999,7]
[426874414,1782970264000,-500.34,0.00032999,7]
[426874409,1782970264000,-500.34,0.00032999,7]
[426874411,1782970264000,-500.34,0.00032999,7]
[426874410,1782970264000,-500.34,0.00032999,7]
[426874364,1782970264000,-151.0,0.00032999,7]
[426874388,1782970264000,-500.0,0.00032999,120]
[426874392,1782970264000,-438.054864,0.00032999,7]
[426874415,1782970264000,-500.34,0.00032999,7]
[426874387,1782970264000,-438.054864,0.00032999,7]
[426874393,1782970264000,-396.666645,0.00032999,7]
[426874365,1782970264000,-620.840217,0.00032999,7]
[426874368,1782970264000,-319.343305,0.00032999,7]
[426874370,1782970264000,-268.572583,0.00032999,7]
[426874366,1782970264000,-319.343305,0.00032999,7]
[426874372,1782970264000,-268.572583,0.00032999,7]
[426874369,1782970264000,-365.35059,0.00032999,7]
[426874367,1782970264000,-365.35059,0.00032999,7]
[426874374,1782970264000,-268.572583,0.00032999,7]
[426874375,1782970264000,-268.572583,0.00032999,7]
[426874376,1782970264000,-151.0,0.00032999,7]
[426874371,1782970264000,-365.35059,0.00032999,7]
[426874377,1782970264000,-151.0,0.00032999,7]
[426874379,1782970264000,-235.200247,0.00032999,7]
[426874378,1782970264000,-151.0,0.00032999,7]
[426874381,1782970264000,-235.200247,0.00032999,7]
[426874383,1782970264000,-235.200247,0.00032999,7]
[426874386,1782970264000,-445.954298,0.00032999,7]
[426874382,1782970264000,-445.954298,0.00032999,7]
[426874385,1782970264000,-235.200247,0.00032999,7]
[426874384,1782970264000,-445.954298,0.00032999,7]
[426874395,1782970264000,-396.666645,0.00032999,7]
[426874394,1782970264000,-438.054864,0.00032999,7]
[426874380,1782970264000,-445.954298,0.00032999,7]
[426874419,1782970265000,-2000.0,0.00032999,7]
[426874425,1782970265000,-978.48,0.00032999,7]
[426874429,1782970265000,-978.48,0.00032999,7]
[426874428,1782970265000,-978.48,0.00032999,7]
[426874418,1782970265000,-500.36188557,0.00032999,7]
[426874427,1782970265000,-978.48,0.00032999,7]
[426874421,1782970265000,-978.48,0.00032999,7]
[426874417,1782970265000,-500.34,0.00032999,7]
[426874416,1782970265000,-500.34,0.00032999,7]
[426874422,1782970265000,-978.48,0.00032999,7]
[426874426,1782970265000,-978.48,0.00032999,7]
[426874430,1782970265000,-978.48,0.00032999,7]
[426874423,1782970265000,-978.48,0.00032999,7]
[426874431,1782970265000,-978.48,0.00032999,7]
[426874420,1782970265000,-978.48,0.00032999,7]
[426874441,1782970265000,-124.86497345,0.00033,5]
[426874437,1782970265000,-240.860076,0.00032877,7]
[426874439,1782970265000,-132.32641536,0.00032877,7]
[426874440,1782970265000,-290.26518549,0.00032999,7]
[426874438,1782970265000,-599.77640864,0.00032877,7]
[426874435,1782970265000,-417.36351536,0.000299,2]
[426874432,1782970265000,-978.48,0.00032999,7]
[426874434,1782970265000,-688.2867645,0.00032999,7]
[426874433,1782970265000,-978.48,0.00032999,7]
[426874424,1782970265000,-978.48,0.00032999,7]
[426874436,1782970265000,-151.0,0.00032877,7]
[426874466,1782970267000,-151.0,0.00032877,7]
[426874463,1782970267000,-245.83,0.00032131,30]
[426874455,1782970267000,-4646.59,0.0003059,10]
[426874456,1782970267000,-351.96,0.00030593,7]
[426874458,1782970267000,-245.83,0.00031306,2]
[426874454,1782970267000,-245.83,0.00030481,7]
[426874451,1782970267000,-327.06,0.00029791,30]
[426874452,1782970267000,-3091.00206416,0.000299,2]
[426874444,1782970267000,-158.22,0.00027142,30]
[426874449,1782970267000,-245.83,0.00029657,30]
[426874448,1782970267000,-899.59215972,0.0003,2]
[426874446,1782970267000,-4733.12150706,0.00029052,2]
[426874445,1782970267000,-3021.84,0.00029052,2]
[426874447,1782970267000,-10267.14353694,0.0003,2]
[426874442,1782970267000,-158.22,0.00024658,2]
[426874443,1782970267000,-158.22,0.000259,7]
[426874450,1782970267000,-351.96,0.00029782,30]
[426874462,1782970267000,-1827.31803873,0.00031876,2]
[426874453,1782970267000,-3833.26430334,0.0003,2]
[426874459,1782970267000,-351.96,0.00031404,2]
[426874477,1782970267000,-792.2326,0.00032877,7]
[426874479,1782970267000,-151.0,0.00032877,7]
[426874480,1782970267000,-100.51591773,0.00032877,7]
[426874478,1782970267000,-792.2326,0.00032877,7]
[426874475,1782970267000,-151.0,0.00032877,7]
[426874473,1782970267000,-4237.378366,0.00032877,7]
[426874476,1782970267000,-151.0,0.00032877,7]
[426874471,1782970267000,-207.548452,0.00032877,7]
[426874472,1782970267000,-792.2326,0.00032877,7]
[426874460,1782970267000,-327.06,0.00031411,2]
[426874474,1782970267000,-792.2326,0.00032877,7]
[426874468,1782970267000,-240.860076,0.00032877,7]
[426874469,1782970267000,-4237.378366,0.00032877,7]
[426874461,1782970267000,-1827.31803873,0.00031849,2]
[426874464,1782970267000,-482.41568265,0.00032867,2]
[426874457,1782970267000,-327.06,0.00030601,7]
[426874467,1782970267000,-165.77221,0.00032877,7]
[426874465,1782970267000,-151.0,0.00032877,7]
[426874470,1782970267000,-240.860076,0.00032877,7]
[426874481,1782970268000,-417.36351534,0.00031735,2]
[426874485,1782970268000,-1312.5815694,0.00032877,7]
[426874484,1782970268000,-151.0,0.00032877,7]
[426874482,1782970268000,-351.96,0.00032215,30]
[426874486,1782970268000,-7754.96150706,0.00029989,2]
[426874483,1782970268000,-327.06,0.00032221,30]
[426874487,1782970268000,-3091.00206416,0.00031735,2]
[426874489,1782970268000,-792.2326,0.00032877,7]
[426874488,1782970268000,-792.2326,0.00032877,7]
[426874490,1782970268000,-792.2326,0.00032877,7]
[426874492,1782970268000,-82.33847389,0.00032877,7]
[426874491,1782970268000,-792.2326,0.00032877,7]
[426874495,1782970513000,167.56,0.00018016,2]
[426874494,1782970513000,418.22,0.00017645,2]
[426874496,1782970515000,962718.45532901,0.00037083,120]
[426874497,1782970524000,371128.8607,0.00028558,120]
[426874500,1782970571000,8377.5125,0.000274,120]
[426874502,1782970618000,600.0,0.00027397,120]
[426874503,1782970620000,600.0,0.00027397,120]
[426874505,1782970621000,600.0,0.00027397,120]
[426874512,1782971084000,126936.6138481,0.00015,2]
[426874513,1782971125000,748.6613531,0.0001995,15]
[426874514,1782971168000,796.62102187,0.000177,2]
[426874528,1782971261000,8854.71762503,0.00018,2]
[426874529,1782971262000,36406.11269756,0.00018,2]
[426874531,1782971266000,166614.77969756,0.00015,2]
[426874532,1782971275000,3346.3216251,0.0002,20]
[426874539,1782971287000,-1719.07923613,0.00021,2]
[426874537,1782971287000,-616.25981314,0.00020929,7]
[426874538,1782971287000,-833.8176,0.00020929,7]
[426874536,1782971287000,-411.95484662,0.00020929,7]
[426874534,1782971287000,-215.0498131,0.00020877,2]
[426874533,1782971287000,-2490.319889,0.00020824,2]
[426874535,1782971287000,-233.51880201,0.00020929,7]
[426874542,1782971313000,-2766.52303192,0.00021,2]
[426874544,1782971315000,2967.40562582,0.00019,2]
[426874543,1782971315000,2293.76696808,0.00019,2]
[426874545,1782971318000,1245.02731606,0.0001789,2]